fUST/lending_fUST_20241104
["ID","MTS","AMOUNT","RATE_DAILY","PERIOD"]
[341223799,1730692149201,-452.4379576,0.00031315,2]
[341223819,1730692232644,-86.29249738,0.00032776,2]
[341223857,1730692238871,-100.49241523,0.00032776,2]
[341223858,1730692238880,-165.3056832,0.000328,2]
[341223859,1730692238890,-78.81441088,0.00032875,2]
[341223860,1730692238986,-102.87587022,0.00032875,2]
[341223861,1730692239417,-493.51859332,0.00032875,2]
[341223862,1730692239426,-400.0,0.00032875,2]
[341223863,1730692239436,-158.63181435,0.00032876,7]
[341223864,1730692239445,-233.360002,0.00032876,7]
[341223865,1730692239454,-233.360002,0.00032876,7]
[341223866,1730692239463,-500.0,0.00032876,7]
[341223867,1730692239475,-152.79173,0.00032876,7]
[341223868,1730692239487,-151.0,0.00032876,7]
[341223869,1730692239499,-152.7694,0.00032876,7]
[341223870,1730692239512,-151.0,0.00032876,7]
[341223871,1730692239523,-151.0,0.00032876,7]
[341223872,1730692239535,-151.0,0.00032876,7]
[341223873,1730692239546,-151.0,0.00032876,7]
[341223874,1730692239556,-500.0,0.00032876,2]
[341223875,1730692239566,-557.91,0.00032876,4]
[341223876,1730692239578,-151.288754,0.00032876,7]
[341223877,1730692239589,-291.06117663,0.00032876,4]
[341223878,1730692239600,-151.0,0.00032876,7]
[341223879,1730692239612,-151.0,0.00032876,7]
[341223880,1730692239623,-151.0,0.00032876,7]
[341223881,1730692239634,-151.0,0.00032876,7]
[341223882,1730692239646,-294.587486,0.00032876,7]
[341223883,1730692239658,-151.0,0.00032876,7]
[341223884,1730692239669,-198.521907,0.00032876,7]
[341223885,1730692239680,-712.453883,0.00032876,7]
[341223886,1730692239692,-381.08390848,0.00032876,7]
[341223901,1730692243851,-921.96817108,0.00032875,2]
[341223902,1730692243921,-331.36997452,0.00032876,7]
[341223903,1730692244008,-151.0,0.00032876,7]
[341223904,1730692244103,-153.097985,0.00032876,7]
[341223905,1730692244252,-167.70135701,0.00032876,4]
[341223906,1730692244350,-275.78800356,0.00032876,4]
[341223915,1730692246864,-224.21199644,0.00032876,4]
[341223916,1730692246877,-321.25580606,0.00032876,7]
[341223917,1730692246920,-40.15767429,0.00032876,7]
[341223918,1730692617814,179.825754,0.00013973,2]
[341223920,1730693136039,-151.0,0.0003,120]
[341223921,1730693136059,-214.22478888,0.00032875,2]
[341223922,1730693136081,-400.0,0.00032875,2]
[341223923,1730693136102,-400.0,0.00032875,2]
[341223924,1730693136123,-500.0,0.00032876,4]
[341223925,1730693136143,-500.0,0.00032876,7]
[341223926,1730693136164,-102.89297721,0.00032876,4]
[341223927,1730693169230,150.0,0.0002,2]
[341223928,1730693169629,150.0,0.00017,2]
[341223929,1730693170032,150.0,0.00013,2]
[341223930,1730693170423,150.0,0.0001,2]
[341223931,1730693174032,150.0,0.00018,30]
[341223932,1730693174456,150.0,0.00014,30]
[341223933,1730693175175,150.0,0.0001,30]
[341223935,1730693346119,-150.0,0.00021,30]
[341223936,1730693346141,-150.0,0.00024,2]
[341223937,1730693346163,-150.0,0.00025,30]
[341223938,1730693346185,-150.0,0.00027,2]
[341223939,1730693346206,-150.0,0.00028,30]
[341223940,1730693346228,-342.98,0.0003,60]
[341223941,1730693352120,-150.0,0.00031,2]
[341223942,1730693352141,-150.0,0.00032,30]
[341223982,1730693438619,-153.0,0.00032548,2]
[341223983,1730693438628,-153.0,0.00032548,2]
[341223984,1730693438638,-153.0,0.00032548,2]
[341223985,1730693438647,-211.3594039,0.00032685,2]
[341223986,1730693438657,-211.1877169,0.00032685,2]
[341223987,1730693438666,-211.1877169,0.00032685,2]
[341223988,1730693438792,-214.22478887,0.00032875,2]
[341223989,1730693438803,-500.0,0.00032876,4]
[341223990,1730693438812,-500.0,0.00032876,4]
[341223991,1730693438822,-500.0,0.00032876,4]
[341223992,1730693438831,-500.0,0.00032876,4]
[341223993,1730693438841,-304.88075753,0.00032876,120]
[341223994,1730693438851,-187.20077,0.00032877,120]
[341223995,1730693438861,-283.21795203,0.00032998,4]
[341223996,1730693438871,-500.0,0.00032998,4]
[341223997,1730693438881,-500.0,0.00032998,2]
[341223998,1730693438891,-534.67,0.00032998,4]
[341223999,1730693438900,-500.0,0.00032998,4]
[341224000,1730693438909,-500.0,0.00032998,4]
[341224001,1730693438919,-401.95779731,0.00032998,4]
[341224002,1730693438936,-487.91572127,0.00032998,4]
[341224003,1730693438945,-500.0,0.00032998,4]
[341224004,1730693438955,-158.66803231,0.00032998,4]
[341224005,1730693438964,-293.90434178,0.00032998,4]
[341224006,1730693438973,-500.0,0.00032998,4]
[341224007,1730693438982,-253.26085349,0.00032998,4]
[341224008,1730693438991,-170.69169959,0.00032998,4]
[341224009,1730693439001,-648.34466409,0.00032998,4]
[341224010,1730693439010,-500.0,0.00032998,4]
[341224011,1730693439019,-500.0,0.00032998,4]
[341224012,1730693439028,-196.48837528,0.00032999,4]
[341224013,1730693439037,-197.37187228,0.00032999,4]
[341224014,1730693439047,-500.0,0.00032999,4]
[341224015,1730693439055,-500.0,0.00032999,4]
[341224016,1730693439064,-2160.93,0.00032999,3]
[341224017,1730693439074,-500.0,0.00032999,4]
[341224018,1730693439083,-5000.0,0.00032999,120]
[341224019,1730693439093,-1002.83266987,0.00033,2]
[341224020,1730693439106,-6635.02912527,0.00033,2]
[341224021,1730693439115,-209.0,0.00033,2]
[341224022,1730693439124,-500.0,0.0003315,4]
[341224023,1730693439133,-598.80322776,0.0003315,4]
[341224024,1730693439142,-500.0,0.0003315,4]
[341224025,1730693439151,-500.0,0.0003315,4]
[341224026,1730693439160,-209.0,0.00033151,2]
[341224027,1730693439169,-316.0,0.000332,2]
[341224028,1730693439180,-732.97254217,0.00033237,2]
[341224029,1730693439190,-582.29622757,0.0003325,2]
[341224030,1730693439199,-150.0,0.00033265,120]
[341224031,1730693439209,-3281.61444494,0.00033271,120]
[341224032,1730693439218,-500.0,0.00033272,4]
[341224033,1730693439227,-500.0,0.00033272,2]
[341224034,1730693439236,-534.67,0.00033272,4]
[341224035,1730693439246,-500.0,0.00033272,4]
[341224036,1730693439255,-151.0,0.00033272,3]
[341224037,1730693439264,-500.0,0.00033272,3]
[341224038,1730693439274,-500.0,0.00033272,4]
[341224039,1730693439283,-426.69973023,0.00033272,4]
[341224040,1730693439292,-500.0,0.00033272,4]
[341224041,1730693439302,-464.99853067,0.00033272,4]
[341224042,1730693439311,-225.40751849,0.00033272,7]
[341224043,1730693439320,-500.0,0.00033273,4]
[341224044,1730693439329,-559.86288873,0.00033273,4]
[341224045,1730693439338,-2160.93,0.00033273,3]
[341224046,1730693439347,-500.0,0.00033273,4]
[341224047,1730693439356,-1000.0,0.00033276,2]
[341224048,1730693439365,-151.0,0.00033342,120]
[341224049,1730693439375,-1000.0,0.00033352,2]
[341224050,1730693439384,-368.05130294,0.00033361,2]
[341224051,1730693439393,-1000.0,0.00033389,2]
[341224052,1730693439402,-162.3,0.000334,31]
[341224053,1730693439411,-240.811002,0.000334,15]
[341224054,1730693439420,-1000.0,0.00033418,2]
[341224055,1730693439435,-1644.11582812,0.00033419,2]
[341224056,1730693439444,-152.820521,0.00033421,14]
[341224057,1730693439453,-151.0,0.00033421,14]
[341224058,1730693439463,-154.492701,0.00033421,14]
[341224059,1730693439472,-500.0,0.00033424,4]
[341224060,1730693439482,-70.76352629,0.00033424,4]
[341224072,1730693443661,-313.81447196,0.00033424,4]
[341224073,1730693443671,-315.36876816,0.00033424,4]
[341224074,1730693443687,-184.63123184,0.00033424,4]
[341224075,1730693443696,-208.209714,0.00033424,14]
[341224076,1730693443706,-186.688002,0.00033424,14]
[341224077,1730693443716,-186.688002,0.00033424,14]
[341224078,1730693443727,-173.651329,0.00033424,14]
[341224079,1730693443737,-1000.0,0.00033466,2]
[341224080,1730693443747,-1164.71962281,0.000335,20]
[341224084,1730693460098,204.394002,0.000316,2]
[341224086,1730693746926,179.825754,0.00013973,2]
[341224088,1730694343148,-225.723385,0.00031837,2]
[341224089,1730694343170,-225.723385,0.00032522,2]
[341224090,1730694343193,-134.27771546,0.00032877,120]
[341224091,1730694428138,-52.92305454,0.00032877,120]
[341224092,1730694428162,-278.76683588,0.00032998,4]
[341224096,1730694511602,1704.26958382,0.000176,2]
[341224097,1730694523138,1321.11248415,0.00017,2]
[341224098,1730694524053,1265.33626153,0.0001,2]
[341224099,1730694552109,-17061.78824,0.00022,30]
[341224100,1730694552155,-78931.41983355,0.00022,30]
[341224101,1730694552175,-1340.42858091,0.00022,2]
[341224102,1730694552196,-600.5,0.0002499,10]
[341224103,1730694552216,-11233.30961974,0.00025,2]
[341224104,1730694552235,-14138.62090305,0.0002509,2]
[341224105,1730694554183,-6501.09666859,0.0002509,2]
[341224106,1730694554204,-7458.94652043,0.0002649,2]
[341224107,1730694554225,-43593.34662367,0.000275,2]
[341224108,1730694561217,-23906.83928105,0.00032,2]
[341224109,1730694561238,-157.0,0.00033,2]
[341224110,1730694561258,-98902.90310742,0.00033,2]
[341224111,1730694561278,-157.0,0.00033151,2]
[341224112,1730694561300,-150.0,0.00033173,2]
[341224113,1730694561322,-1141.0,0.00033173,2]
[341224114,1730694561343,-2393.0,0.00033173,2]
[341224115,1730694561363,-225.723385,0.00033207,2]
[341224116,1730694561387,-10198.8222047,0.000333,2]
[341224117,1730694561409,-162.31,0.000334,31]
[341224118,1730694561433,-150.0,0.000334,15]
[341224119,1730694561454,-986.95661208,0.00033411,2]
[341224120,1730694561474,-504.41003457,0.00033418,4]
[341224121,1730694561495,-500.0,0.00033418,4]
[341224122,1730694561515,-500.0,0.00033418,4]
[341224123,1730694561536,-500.0,0.00033418,2]
[341224124,1730694561558,-510.95,0.00033418,4]
[341224125,1730694561578,-500.0,0.00033418,4]
[341224126,1730694561599,-2001.68,0.00033418,3]
[341224127,1730694561625,-298.28990803,0.00033418,4]
[341224128,1730694561645,-503.53078241,0.00033418,4]
[341224129,1730694561666,-1000.0,0.00033418,2]
[341224130,1730694561686,-504.76969653,0.00033418,4]
[341224131,1730694561707,-500.0,0.00033418,4]
[341224132,1730694561729,-495.53197634,0.00033418,4]
[341224133,1730694561752,-500.0,0.00033418,4]
[341224134,1730694561778,-346.29424571,0.00033418,4]
[341224135,1730694561805,-236.00492231,0.00033418,4]
[341224136,1730694561833,-500.0,0.00033418,4]
[341224137,1730694561863,-201.41744588,0.00033418,4]
[341224138,1730694561890,-619.79433687,0.00033418,4]
[341224139,1730694561916,-500.0,0.00033418,4]
[341224140,1730694561943,-523.7718209,0.00033418,4]
[341224141,1730694561969,-8282.88273884,0.00033418,2]
[341224142,1730694561994,-273.42983684,0.00033421,2]
[341224143,1730694562020,-3835.28037719,0.000335,20]
[341224144,1730694562046,-500.0,0.000335,120]
[341224145,1730694562070,-1439.09215795,0.00033511,4]
[341224146,1730694562096,-817.6,0.00033511,3]
[341224147,1730694562122,-408.8,0.00033511,3]
[341224148,1730694562146,-204.4,0.00033511,3]
[341224149,1730694562170,-170.34,0.00033511,3]
[341224150,1730694562195,-6341.0,0.00033514,30]
[341224151,1730694562217,-161.42562434,0.00033517,5]
[341224152,1730694562238,-500.0,0.00033517,7]
[341224153,1730694562262,-151.0,0.00033518,14]
[341224154,1730694562286,-151.0,0.00033518,14]
[341224155,1730694562311,-500.0,0.00033518,14]
[341224156,1730694562337,-209.77,0.0003352,2]
[341224157,1730694562363,-151.0,0.00033521,14]
[341224158,1730694562392,-151.0,0.00033521,14]
[341224159,1730694562417,-151.0,0.00033521,14]
[341224160,1730694562440,-151.0,0.00033521,14]
[341224161,1730694562463,-151.0,0.00033521,14]
[341224162,1730694562486,-151.0,0.00033521,14]
[341224163,1730694562510,-151.0,0.00033521,14]
[341224164,1730694562536,-151.0,0.00033521,14]
[341224165,1730694562561,-151.0,0.00033521,14]
[341224166,1730694562583,-151.0,0.00033521,14]
[341224167,1730694562607,-151.0,0.00033521,14]
[341224168,1730694562633,-151.0,0.00033521,14]
[341224169,1730694562656,-151.0,0.00033521,14]
[341224170,1730694562682,-151.0,0.00033521,14]
[341224171,1730694562703,-182.514966,0.00033521,14]
[341224172,1730694562726,-151.0,0.00033521,14]
[341224173,1730694562748,-151.0,0.00033521,14]
[341224174,1730694562771,-151.0,0.00033521,14]
[341224175,1730694562796,-151.0,0.00033521,14]
[341224176,1730694562819,-151.0,0.00033521,14]
[341224177,1730694562842,-151.0,0.00033521,14]
[341224178,1730694562865,-151.0,0.00033521,14]
[341224179,1730694562888,-151.0,0.00033521,14]
[341224180,1730694562911,-151.0,0.00033521,14]
[341224181,1730694562934,-151.0,0.00033521,14]
[341224182,1730694562956,-151.0,0.00033521,14]
[341224183,1730694563084,-151.0,0.00033521,14]
[341224184,1730694563112,-245.32336,0.00033521,14]
[341224185,1730694563135,-245.32336,0.00033521,14]
[341224186,1730694563156,-245.32336,0.00033521,14]
[341224187,1730694563178,-245.32336,0.00033521,14]
[341224188,1730694563198,-245.32336,0.00033521,14]
[341224189,1730694563218,-245.32336,0.00033521,14]
[341224190,1730694563241,-245.32336,0.00033521,14]
[341224191,1730694563261,-245.32336,0.00033521,14]
[341224192,1730694563282,-321.573684,0.00033521,14]
[341224193,1730694563303,-321.573684,0.00033521,14]
[341224194,1730694563325,-321.573684,0.00033521,14]
[341224195,1730694563347,-321.573684,0.00033521,14]
[341224196,1730694563370,-321.573684,0.00033521,14]
[341224197,1730694563390,-321.573684,0.00033521,14]
[341224198,1730694563411,-321.573684,0.00033521,14]
[341224199,1730694563433,-321.573684,0.00033521,14]
[341224200,1730694563455,-151.0,0.00033521,14]
[341224201,1730694563474,-151.0,0.00033521,14]
[341224202,1730694563495,-152.248717,0.00033521,14]
[341224203,1730694563516,-151.0,0.00033521,14]
[341224204,1730694563537,-151.0,0.00033521,14]
[341224205,1730694563558,-151.0,0.00033521,14]
[341224206,1730694563578,-151.785659,0.00033521,14]
[341224207,1730694563598,-942.078236,0.00033521,14]
[341224208,1730694563620,-942.078236,0.00033521,14]
[341224209,1730694563640,-942.078236,0.00033521,14]
[341224210,1730694563661,-942.078236,0.00033521,14]
[341224211,1730694563681,-942.078236,0.00033521,14]
[341224212,1730694563702,-942.078236,0.00033521,14]
[341224213,1730694563722,-942.078236,0.00033521,14]
[341224214,1730694563741,-942.078236,0.00033521,14]
[341224215,1730694563761,-151.0,0.00033521,14]
[341224216,1730694563782,-151.0,0.00033521,14]
[341224217,1730694563803,-151.0,0.00033521,14]
[341224218,1730694563822,-151.0,0.00033521,14]
[341224219,1730694563844,-255.75905,0.00033521,14]
[341224220,1730694563864,-255.75905,0.00033521,14]
[341224221,1730694563886,-255.75905,0.00033521,14]
[341224223,1730694563907,-255.75905,0.00033521,14]
[341224225,1730694563929,-255.75905,0.00033521,14]
[341224226,1730694563951,-255.75905,0.00033521,14]
[341224227,1730694563972,-255.75905,0.00033521,14]
[341224228,1730694563994,-255.75905,0.00033521,14]
[341224229,1730694564015,-255.75905,0.00033521,14]
[341224230,1730694564036,-255.75905,0.00033521,14]
[341224231,1730694564057,-200.332513,0.00033521,14]
[341224232,1730694564077,-200.332513,0.00033521,14]
[341224233,1730694564100,-200.332513,0.00033521,14]
[341224234,1730694564123,-200.332513,0.00033521,14]
[341224235,1730694564144,-200.332513,0.00033521,14]
[341224236,1730694564164,-200.332513,0.00033521,14]
[341224237,1730694564187,-200.332513,0.00033521,14]
[341224238,1730694564207,-200.332513,0.00033521,14]
[341224239,1730694564229,-200.332513,0.00033521,14]
[341224240,1730694564249,-200.332513,0.00033521,14]
[341224241,1730694564270,-152.613709,0.00033521,14]
[341224242,1730694564291,-151.0,0.00033521,14]
[341224243,1730694564311,-151.0,0.00033521,14]
[341224244,1730694564334,-151.0,0.00033521,14]
[341224245,1730694564355,-160.905406,0.00033521,14]
[341224246,1730694564382,-337.402888,0.00033521,14]
[341224247,1730694564402,-337.402888,0.00033521,14]
[341224248,1730694564421,-337.402888,0.00033521,14]
[341224249,1730694564441,-337.402888,0.00033521,14]
[341224250,1730694564461,-337.402888,0.00033521,14]
[341224251,1730694564481,-337.402888,0.00033521,14]
[341224252,1730694564501,-337.402888,0.00033521,14]
[341224253,1730694564522,-337.402888,0.00033521,14]
[341224254,1730694564544,-337.402888,0.00033521,14]
[341224255,1730694564564,-337.402888,0.00033521,14]
[341224256,1730694564584,-151.0,0.00033521,14]
[341224257,1730694564604,-153.417329,0.00033521,14]
[341224258,1730694564626,-151.0,0.00033521,14]
[341224259,1730694564646,-151.0,0.00033521,14]
[341224260,1730694564667,-151.0,0.00033521,14]
[341224261,1730694564687,-232.050002,0.00033521,14]
[341224262,1730694564707,-151.0,0.00033521,14]
[341224263,1730694564727,-151.0,0.00033521,14]
[341224264,1730694564747,-151.0,0.00033521,14]
[341224265,1730694564767,-151.0,0.00033521,14]
[341224266,1730694564788,-151.0,0.00033521,14]
[341224267,1730694564808,-151.0,0.00033521,14]
[341224268,1730694564831,-151.0,0.00033521,14]
[341224269,1730694564850,-151.0,0.00033521,14]
[341224270,1730694564874,-213.056149,0.00033521,14]
[341224271,1730694564893,-151.0,0.00033521,14]
[341224272,1730694564914,-151.0,0.00033521,14]
[341224273,1730694564933,-151.0,0.00033521,14]
[341224274,1730694564953,-151.0,0.00033521,14]
[341224275,1730694564973,-165.144727,0.00033521,14]
[341224276,1730694564994,-151.0,0.00033521,14]
[341224277,1730694565016,-151.0,0.00033521,14]
[341224278,1730694565036,-151.0,0.00033521,14]
[341224279,1730694565056,-151.0,0.00033521,14]
[341224280,1730694565076,-151.0,0.00033521,14]
[341224281,1730694565100,-246.093997,0.00033521,14]
[341224282,1730694565122,-151.0,0.00033521,14]
[341224283,1730694565143,-151.0,0.00033521,14]
[341224284,1730694565164,-151.0,0.00033521,14]
[341224285,1730694565187,-151.0,0.00033521,14]
[341224286,1730694565208,-151.0,0.00033521,14]
[341224287,1730694565228,-151.0,0.00033521,14]
[341224288,1730694565249,-963.484236,0.00033521,14]
[341224289,1730694565270,-963.484236,0.00033521,14]
[341224290,1730694565290,-963.484236,0.00033521,14]
[341224291,1730694565310,-963.484236,0.00033521,14]
[341224292,1730694565330,-963.484236,0.00033521,14]
[341224293,1730694565362,-963.484236,0.00033521,14]
[341224294,1730694565389,-963.484236,0.00033521,14]
[341224295,1730694565409,-963.484236,0.00033521,14]
[341224296,1730694565430,-963.484236,0.00033521,14]
[341224297,1730694565582,-963.484236,0.00033521,14]
[341224298,1730694565605,-963.484236,0.00033521,14]
[341224299,1730694565627,-963.484236,0.00033521,14]
[341224300,1730694565648,-151.0,0.00033521,14]
[341224301,1730694565670,-151.0,0.00033521,14]
[341224302,1730694565690,-151.0,0.00033521,14]
[341224303,1730694565711,-151.0,0.00033521,14]
[341224304,1730694565733,-151.0,0.00033521,14]
[341224305,1730694565754,-151.0,0.00033521,14]
[341224306,1730694565777,-151.0,0.00033521,14]
[341224307,1730694565797,-164.507748,0.00033521,14]
[341224308,1730694565818,-212.915718,0.00033521,14]
[341224309,1730694565840,-151.0,0.00033521,14]
[341224310,1730694565864,-199.901133,0.00033521,14]
[341224311,1730694565885,-151.0,0.00033521,14]
[341224312,1730694565907,-151.0,0.00033521,14]
[341224313,1730694565928,-156.868832,0.00033521,14]
[341224314,1730694565950,-151.0,0.00033521,14]
[341224315,1730694565971,-151.0,0.00033521,14]
[341224316,1730694565991,-151.0,0.00033521,14]
[341224317,1730694566012,-151.0,0.00033521,14]
[341224318,1730694566032,-151.0,0.00033521,14]
[341224319,1730694566053,-151.0,0.00033521,14]
[341224320,1730694566074,-241.957286,0.00033521,14]
[341224321,1730694566098,-546.882257,0.00033521,14]
[341224322,1730694566120,-546.882257,0.00033521,14]
[341224323,1730694566142,-546.882257,0.00033521,14]
[341224324,1730694566165,-546.882257,0.00033521,14]
[341224325,1730694566186,-151.0,0.00033521,14]
[341224326,1730694566207,-160.617153,0.00033521,14]
[341224327,1730694566229,-160.617153,0.00033521,14]
[341224328,1730694566250,-151.0,0.00033522,14]
[341224329,1730694566272,-151.0,0.00033522,14]
[341224330,1730694566292,-151.0,0.00033522,14]
[341224331,1730694566313,-151.0,0.00033522,14]
[341224332,1730694566334,-151.0,0.00033522,14]
[341224333,1730694566356,-151.0,0.00033522,14]
[341224334,1730694566378,-151.0,0.00033522,14]
[341224335,1730694566399,-151.0,0.00033522,14]
[341224336,1730694566420,-156.388889,0.00033522,14]
[341224337,1730694566442,-546.882257,0.00033522,14]
[341224338,1730694566463,-546.882257,0.00033522,14]
[341224339,1730694566484,-546.882257,0.00033522,14]
[341224340,1730694566504,-546.882257,0.00033522,14]
[341224341,1730694566524,-546.882257,0.00033522,14]
[341224342,1730694566545,-546.882257,0.00033522,14]
[341224343,1730694566566,-546.882257,0.00033522,14]
[341224344,1730694566586,-546.882257,0.00033522,14]
[341224345,1730694566607,-160.617153,0.00033522,14]
[341224346,1730694566630,-151.0,0.00033527,14]
[341224347,1730694566651,-152.934566,0.00033527,14]
[341224348,1730694566672,-151.0,0.00033527,14]
[341224349,1730694566693,-151.0,0.00033527,14]
[341224350,1730694566713,-151.0,0.00033527,14]
[341224351,1730694566733,-151.0,0.00033527,14]
[341224352,1730694566754,-151.0,0.00033527,14]
[341224353,1730694566774,-151.0,0.00033527,14]
[341224354,1730694566795,-151.0,0.00033527,14]
[341224355,1730694566816,-152.625139,0.00033527,14]
[341224356,1730694566838,-151.0,0.00033527,14]
[341224357,1730694566860,-151.0,0.00033527,14]
[341224358,1730694566882,-151.0,0.00033527,14]
[341224359,1730694566901,-181.691674,0.00033527,14]
[341224360,1730694566923,-151.0,0.00033527,14]
[341224361,1730694566944,-151.0,0.00033527,14]
[341224362,1730694566964,-151.0,0.00033527,14]
[341224363,1730694566984,-297.643795,0.00033527,14]
[341224364,1730694567004,-151.0,0.00033527,14]
[341224365,1730694567025,-151.0,0.00033527,14]
[341224366,1730694567045,-151.0,0.00033527,14]
[341224367,1730694567066,-245.32336,0.00033527,14]
[341224368,1730694567086,-245.32336,0.00033527,14]
[341224369,1730694567111,-245.32336,0.00033527,14]
[341224370,1730694567134,-245.32336,0.00033527,14]
[341224371,1730694567157,-321.573684,0.00033527,14]
[341224372,1730694567180,-321.573684,0.00033527,14]
[341224373,1730694567200,-321.573684,0.00033527,14]
[341224374,1730694567224,-321.573684,0.00033527,14]
[341224375,1730694567244,-942.078236,0.00033527,14]
[341224376,1730694567265,-942.078236,0.00033527,14]
[341224377,1730694567284,-942.078236,0.00033527,14]
[341224378,1730694567303,-942.078236,0.00033527,14]
[341224379,1730694567324,-255.75905,0.00033527,14]
[341224380,1730694567344,-255.75905,0.00033527,14]
[341224381,1730694567364,-200.332513,0.00033527,14]
[341224382,1730694567384,-200.332513,0.00033527,14]
[341224383,1730694567405,-337.402888,0.00033527,14]
[341224384,1730694567425,-337.402888,0.00033527,14]
[341224385,1730694567445,-151.0,0.00033527,14]
[341224386,1730694567465,-151.0,0.00033527,14]
[341224387,1730694567485,-963.484236,0.00033527,14]
[341224388,1730694567509,-963.484236,0.00033527,14]
[341224389,1730694567529,-151.0,0.00033527,14]
[341224390,1730694567549,-151.0,0.00033527,14]
[341224391,1730694567569,-546.882257,0.00033527,14]
[341224392,1730694567590,-546.882257,0.00033527,14]
[341224393,1730694567610,-942.078236,0.00033546,14]
[341224394,1730694567630,-942.078236,0.00033546,14]
[341224395,1730694567650,-151.0,0.00033546,14]
[341224396,1730694567671,-503.39782199,0.00033573,2]
[341224397,1730694567692,-501.45444801,0.00033573,5]
[341224398,1730694567714,-500.0,0.00033573,5]
[341224399,1730694567735,-503.47731255,0.00033573,5]
[341224400,1730694567755,-163.15660175,0.00033573,2]
[341224401,1730694567775,-500.0,0.00033573,2]
[341224402,1730694567796,-500.0,0.00033573,5]
[341224403,1730694567819,-245.32336,0.00033573,14]
[341224404,1730694567841,-245.32336,0.00033573,14]
[341224405,1730694567867,-321.573684,0.00033573,14]
[341224406,1730694567889,-321.573684,0.00033573,14]
[341224407,1730694567911,-248.91850698,0.00033673,3]
[341224408,1730694567933,-500.0,0.00033692,4]
[341224409,1730694568050,-500.0,0.00033692,4]
[341224410,1730694568071,-500.0,0.00033692,2]
[341224411,1730694568096,-510.95,0.00033692,4]
[341224412,1730694568118,-255.75905,0.00033692,14]
[341224413,1730694568144,-255.75905,0.00033692,14]
[341224414,1730694568165,-500.0,0.00033692,4]
[341224415,1730694568187,-200.332513,0.00033692,14]
[341224416,1730694568208,-200.332513,0.00033692,14]
[341224417,1730694568231,-2001.68,0.00033692,3]
[341224418,1730694568254,-337.402888,0.00033692,14]
[341224419,1730694568275,-337.402888,0.00033692,14]
[341224420,1730694568295,-151.0,0.00033692,14]
[341224421,1730694568316,-151.0,0.00033692,14]
[341224422,1730694568338,-500.0,0.00033692,4]
[341224423,1730694568360,-963.484236,0.00033692,14]
[341224424,1730694568387,-963.484236,0.00033692,14]
[341224425,1730694568409,-500.0,0.00033692,4]
[341224426,1730694568429,-500.0,0.00033692,4]
[341224427,1730694568449,-151.0,0.00033692,14]
[341224428,1730694568471,-546.882257,0.00033692,14]
[341224429,1730694568491,-546.882257,0.00033692,14]
[341224430,1730694568511,-500.0,0.00033692,4]
[341224431,1730694568531,-151.0,0.00033698,14]
[341224432,1730694568551,-256.840312,0.00033706,14]
[341224433,1730694568571,-151.0,0.00033706,14]
[341224434,1730694568591,-244.00866,0.00033706,14]
[341224435,1730694568612,-942.078236,0.00033706,14]
[341224436,1730694568635,-942.078236,0.00033706,14]
[341224437,1730694568655,-247.83621,0.00033706,14]
[341224438,1730694568675,-150.326,0.00033706,2]